[Event "Titled Tuesday Blitz June 8 2021"]
[White "Zhigalko, Sergei"]
[Black "Vazquez, Facundo"]
[WhiteFideId "13502956"]
[BlackFideId "3007669"]
[WhiteElo "2662"]
[BlackElo "1984"]
[Result "1/2-1/2"]
[Round "07"]
[TimeControl "180+1"]
[Date "2021.06.08"]
[WhiteClock "0:00:05"]
[BlackClock "0:00:09"]

1. e4 {[%clk 0:03:00]}  c5 {[%clk 0:02:56]} 2. Nf3 {[%clk 0:03:00]}  Nc6 {[%clk 0:02:57]} 3. c3 {[%clk 0:03:01]}  Nf6 {[%clk 0:02:56]} 4. e5 {[%clk 0:03:01]}  Nd5 {[%clk 0:02:56]} 5. Bc4 {[%clk 0:03:02]}  Nb6 {[%clk 0:02:56]} 6. Bb3 {[%clk 0:03:02]}  c4 {[%clk 0:02:57]} 7. Bc2 {[%clk 0:03:02]}  d5 {[%clk 0:02:56]} 8. exd6 {[%clk 0:03:02]}  Qxd6 {[%clk 0:02:56]} 9. O-O {[%clk 0:03:02]}  Bg4 {[%clk 0:02:54]} 10. Re1 {[%clk 0:03:03]}  g6 {[%clk 0:02:52]} 11. b3 {[%clk 0:03:01]}  Ne5 {[%clk 0:02:40]} 12. Rxe5 {[%clk 0:02:55]}  Bxf3 {[%clk 0:02:39]} 13. Qe1 {[%clk 0:02:56]}  Bc6 {[%clk 0:02:29]} 14. Ba3 {[%clk 0:02:34]}  Qf6 {[%clk 0:02:26]} 15. Be4 {[%clk 0:02:03]}  e6 {[%clk 0:02:06]} 16. Bxc6+ {[%clk 0:02:01]}  bxc6 {[%clk 0:02:05]} 17. Bxf8 {[%clk 0:01:59]}  Kxf8 {[%clk 0:02:04]} 18. Na3 {[%clk 0:01:56]}  Rd8 {[%clk 0:02:01]} 19. Ra5 {[%clk 0:01:35]}  Nd5 {[%clk 0:01:25]} 20. Nxc4 {[%clk 0:01:28]}  Nf4 {[%clk 0:01:21]} 21. Qe5 {[%clk 0:01:13]}  Qxe5 {[%clk 0:01:16]} 22. Rxe5 {[%clk 0:01:12]}  Rd5 {[%clk 0:01:08]} 23. Kf1 {[%clk 0:00:53]}  Ke7 {[%clk 0:01:03]} 24. d4 {[%clk 0:00:48]}  Rhd8 {[%clk 0:00:59]} 25. g3 {[%clk 0:00:43]}  Nh5 {[%clk 0:00:51]} 26. Na5 {[%clk 0:00:32]}  Kd7 {[%clk 0:00:44]} 27. Rae1 {[%clk 0:00:29]}  f6 {[%clk 0:00:32]} 28. Rxd5+ {[%clk 0:00:17]}  cxd5 {[%clk 0:00:33]} 29. Nb7 {[%clk 0:00:18]}  Re8 {[%clk 0:00:31]} 30. f4 {[%clk 0:00:12]}  f5 {[%clk 0:00:29]} 31. Nc5+ {[%clk 0:00:12]}  Kd6 {[%clk 0:00:29]} 32. c4 {[%clk 0:00:11]}  Nf6 {[%clk 0:00:28]} 33. Ke2 {[%clk 0:00:10]}  Rc8 {[%clk 0:00:25]} 34. Kd3 {[%clk 0:00:07]}  Ne4 {[%clk 0:00:24]} 35. Nxe4+ {[%clk 0:00:07]}  fxe4+ {[%clk 0:00:23]} 36. Kc3 {[%clk 0:00:08]}  a5 {[%clk 0:00:22]} 37. c5+ {[%clk 0:00:05]}  Kc6 {[%clk 0:00:22]} 38. a3 {[%clk 0:00:05]}  Ra8 {[%clk 0:00:20]} 39. Rb1 {[%clk 0:00:04]}  h6 {[%clk 0:00:17]} 40. Rb2 {[%clk 0:00:04]}  Ra7 {[%clk 0:00:15]} 41. Rg2 {[%clk 0:00:04]}  Rf7 {[%clk 0:00:12]} 42. Ra2 {[%clk 0:00:03]}  g5 {[%clk 0:00:12]} 43. Rf2 {[%clk 0:00:03]}  h5 {[%clk 0:00:10]} 44. Rf1 {[%clk 0:00:03]}  h4 {[%clk 0:00:10]} 45. Rf2 {[%clk 0:00:03]}  hxg3 {[%clk 0:00:07]} 46. hxg3 {[%clk 0:00:04]}  gxf4 {[%clk 0:00:05]} 47. Rxf4 {[%clk 0:00:05]}  Rg7 {[%clk 0:00:05]} 48. Rf6 {[%clk 0:00:04]}  Rxg3+ {[%clk 0:00:05]} 49. Kc2 {[%clk 0:00:05]}  Rd3 {[%clk 0:00:03]} 50. Rxe6+ {[%clk 0:00:05]}  Kc7 {[%clk 0:00:04]} 51. Re7+ {[%clk 0:00:04]}  Kc6 {[%clk 0:00:04]} 52. Re6+ {[%clk 0:00:04]}  Kc7 {[%clk 0:00:05]} 53. b4 {[%clk 0:00:05]}  axb4 {[%clk 0:00:04]} 54. axb4 {[%clk 0:00:06]}  Rxd4 {[%clk 0:00:05]} 55. Kb3 {[%clk 0:00:06]}  Rd3+ {[%clk 0:00:05]} 56. Ka4 {[%clk 0:00:06]}  e3 {[%clk 0:00:06]} 57. b5 {[%clk 0:00:04]}  Kd7 {[%clk 0:00:06]} 58. Re5 {[%clk 0:00:03]}  Rd4+ {[%clk 0:00:05]} 59. Ka5 {[%clk 0:00:03]}  Re4 {[%clk 0:00:05]} 60. Rxd5+ {[%clk 0:00:04]}  Kc7 {[%clk 0:00:06]} 61. Rd1 {[%clk 0:00:03]}  e2 {[%clk 0:00:06]} 62. Re1 {[%clk 0:00:03]}  Re3 {[%clk 0:00:07]} 63. b6+ {[%clk 0:00:03]}  Kc6 {[%clk 0:00:07]} 64. b7 {[%clk 0:00:03]}  Kxb7 {[%clk 0:00:06]} 65. Kb5 {[%clk 0:00:03]}  Kc7 {[%clk 0:00:06]} 66. Kc4 {[%clk 0:00:04]}  Re4+ {[%clk 0:00:07]} 67. Kd3 {[%clk 0:00:04]}  Re7 {[%clk 0:00:07]} 68. Rxe2 {[%clk 0:00:04]}  Rxe2 {[%clk 0:00:07]} 69. Kxe2 {[%clk 0:00:04]}  Kc6 {[%clk 0:00:08]} 70. Kd3 {[%clk 0:00:05]}  Kxc5 {[%clk 0:00:09]} 1/2-1/2


[Site "https://www.chess.com"]

[Event "Titled Tuesday Blitz June 8 2021"]
[White "Zhukov, Maksim"]
[Black "Nitin, S."]
[WhiteFideId "34181790"]
[BlackFideId "5018277"]
[WhiteElo "1992"]
[BlackElo "2431"]
[Result "0-1"]
[Round "07"]
[TimeControl "180+1"]
[Date "2021.06.08"]
[WhiteClock "0:01:42"]
[BlackClock "0:01:17"]

1. Nf3 {[%clk 0:03:00]}  Nf6 {[%clk 0:02:58]} 2. g3 {[%clk 0:03:01]}  g6 {[%clk 0:02:59]} 3. Bg2 {[%clk 0:03:02]}  Bg7 {[%clk 0:02:59]} 4. O-O {[%clk 0:03:03]}  O-O {[%clk 0:02:59]} 5. d3 {[%clk 0:03:04]}  d5 {[%clk 0:02:59]} 6. Nc3 {[%clk 0:03:05]}  Nc6 {[%clk 0:02:59]} 7. e4 {[%clk 0:03:05]}  d4 {[%clk 0:02:57]} 8. Nb1 {[%clk 0:03:04]}  e5 {[%clk 0:02:57]} 9. a4 {[%clk 0:03:05]}  a5 {[%clk 0:02:57]} 10. Na3 {[%clk 0:03:05]}  Re8 {[%clk 0:02:54]} 11. Nc4 {[%clk 0:03:05]}  h6 {[%clk 0:02:52]} 12. Bd2 {[%clk 0:03:04]}  b6 {[%clk 0:02:52]} 13. b3 {[%clk 0:03:04]}  Nd7 {[%clk 0:02:48]} 14. Ne1 {[%clk 0:03:02]}  Nc5 {[%clk 0:02:47]} 15. f4 {[%clk 0:03:02]}  exf4 {[%clk 0:02:45]} 16. Bxf4 {[%clk 0:02:59]}  Be6 {[%clk 0:02:39]} 17. h4 {[%clk 0:02:53]}  Bxc4 {[%clk 0:02:37]} 18. bxc4 {[%clk 0:02:53]}  Ne5 {[%clk 0:02:37]} 19. Qd2 {[%clk 0:02:51]}  h5 {[%clk 0:02:32]} 20. Bh3 {[%clk 0:02:33]}  Qd6 {[%clk 0:02:22]} 21. Nf3 {[%clk 0:02:32]}  Nxf3+ {[%clk 0:02:10]} 22. Rxf3 {[%clk 0:02:31]}  Be5 {[%clk 0:02:11]} 23. Bxe5 {[%clk 0:02:21]}  Qxe5 {[%clk 0:02:00]} 24. Raf1 {[%clk 0:02:21]}  Re7 {[%clk 0:02:00]} 25. g4 {[%clk 0:02:03]}  Nxa4 {[%clk 0:01:52]} 26. gxh5 {[%clk 0:01:56]}  Qxh5 {[%clk 0:01:52]} 27. Qf4 {[%clk 0:01:55]}  Nc3 {[%clk 0:01:46]} 28. Kh1 {[%clk 0:01:55]}  a4 {[%clk 0:01:45]} 29. e5 {[%clk 0:01:46]}  Qxe5 {[%clk 0:01:30]} 30. Qxe5 {[%clk 0:01:46]}  Rxe5 {[%clk 0:01:31]} 31. Rxf7 {[%clk 0:01:45]}  a3 {[%clk 0:01:31]} 32. Rxc7 {[%clk 0:01:42]}  a2 {[%clk 0:01:30]} 33. Ra1 {[%clk 0:01:42]}  Rae8 {[%clk 0:01:17]} 0-1


[Site "https://www.chess.com"]

[Event "Titled Tuesday Blitz June 8 2021"]
[White "Zierk, Steven"]
[Black "Nenezic, Marko"]
[WhiteFideId "2034255"]
[BlackFideId "912123"]
[WhiteElo "2502"]
[BlackElo "2438"]
[Result "1-0"]
[Round "07"]
[TimeControl "180+1"]
[Date "2021.06.08"]
[WhiteClock "0:00:20"]
[BlackClock "0:00:20"]

1. e4 {[%clk 0:03:00]}  c5 {[%clk 0:02:59]} 2. Nf3 {[%clk 0:03:00]}  d6 {[%clk 0:03:00]} 3. Be2 {[%clk 0:02:59]}  Nf6 {[%clk 0:02:58]} 4. c3 {[%clk 0:02:59]}  Bg4 {[%clk 0:02:56]} 5. O-O {[%clk 0:02:58]}  e6 {[%clk 0:02:56]} 6. Re1 {[%clk 0:02:56]}  Be7 {[%clk 0:02:56]} 7. d4 {[%clk 0:02:53]}  O-O {[%clk 0:02:52]} 8. h3 {[%clk 0:02:48]}  Bh5 {[%clk 0:02:52]} 9. dxc5 {[%clk 0:02:25]}  dxc5 {[%clk 0:02:52]} 10. Qc2 {[%clk 0:02:25]}  Qc7 {[%clk 0:02:46]} 11. Na3 {[%clk 0:02:23]}  a6 {[%clk 0:02:46]} 12. g3 {[%clk 0:02:17]}  Bg6 {[%clk 0:02:35]} 13. Bf4 {[%clk 0:02:14]}  Qc8 {[%clk 0:02:11]} 14. Bf1 {[%clk 0:02:11]}  Nbd7 {[%clk 0:02:03]} 15. Rad1 {[%clk 0:02:00]}  Qc6 {[%clk 0:01:57]} 16. Bg2 {[%clk 0:01:56]}  Rfd8 {[%clk 0:01:25]} 17. Nh4 {[%clk 0:01:52]}  Qc8 {[%clk 0:01:22]} 18. Nc4 {[%clk 0:01:32]}  Ne8 {[%clk 0:01:17]} 19. Nxg6 {[%clk 0:01:01]}  hxg6 {[%clk 0:01:17]} 20. e5 {[%clk 0:01:00]}  g5 {[%clk 0:01:16]} 21. Bc1 {[%clk 0:00:58]}  Rb8 {[%clk 0:01:08]} 22. a4 {[%clk 0:00:55]}  b5 {[%clk 0:01:01]} 23. axb5 {[%clk 0:00:48]}  axb5 {[%clk 0:01:02]} 24. Na5 {[%clk 0:00:49]}  Rb6 {[%clk 0:01:02]} 25. Qe4 {[%clk 0:00:46]}  Nb8 {[%clk 0:00:59]} 26. Be3 {[%clk 0:00:41]}  Rxd1 {[%clk 0:00:52]} 27. Rxd1 {[%clk 0:00:41]}  Ra6 {[%clk 0:00:50]} 28. Nb7 {[%clk 0:00:31]}  c4 {[%clk 0:00:36]} 29. Bc5 {[%clk 0:00:26]}  Bxc5 {[%clk 0:00:36]} 30. Rd8 {[%clk 0:00:24]}  Qxd8 {[%clk 0:00:30]} 31. Nxd8 {[%clk 0:00:25]}  Ra1+ {[%clk 0:00:31]} 32. Bf1 {[%clk 0:00:26]}  Rd1 {[%clk 0:00:25]} 33. Nxf7 {[%clk 0:00:21]}  Kxf7 {[%clk 0:00:23]} 34. Qf3+ {[%clk 0:00:21]}  Ke7 {[%clk 0:00:21]} 35. Qxd1 {[%clk 0:00:21]}  Nc6 {[%clk 0:00:22]} 36. Qg4 {[%clk 0:00:20]}  Nxe5 {[%clk 0:00:21]} 37. Qxg5+ {[%clk 0:00:20]}  Kd6 {[%clk 0:00:20]} 38. Qd8+ {[%clk 0:00:20]} 1-0


[Site "https://www.chess.com"]

[Event "Titled Tuesday Blitz June 8 2021"]
[White "Annaberdiyev, Babageldi"]
[Black "Vokhidov, Shamsiddin"]
[WhiteFideId "14000385"]
[BlackFideId "14204223"]
[WhiteElo "2332"]
[BlackElo "2572"]
[Result "1/2-1/2"]
[Round "08"]
[TimeControl "180+1"]
[Date "2021.06.08"]
[WhiteClock "0:00:50"]
[BlackClock "0:00:49"]

1. e4 {[%clk 0:03:00]}  e5 {[%clk 0:03:00]} 2. Nf3 {[%clk 0:02:58]}  Nc6 {[%clk 0:03:00]} 3. Bc4 {[%clk 0:02:58]}  Nf6 {[%clk 0:03:00]} 4. d4 {[%clk 0:02:57]}  exd4 {[%clk 0:03:00]} 5. O-O {[%clk 0:02:57]}  Nxe4 {[%clk 0:02:59]} 6. Re1 {[%clk 0:02:57]}  d5 {[%clk 0:02:59]} 7. Bxd5 {[%clk 0:02:58]}  Qxd5 {[%clk 0:02:59]} 8. Nc3 {[%clk 0:02:59]}  Qh5 {[%clk 0:03:00]} 9. Nxe4 {[%clk 0:02:57]}  Be6 {[%clk 0:03:00]} 10. Bg5 {[%clk 0:02:57]}  Bd6 {[%clk 0:02:59]} 11. h4 {[%clk 0:02:54]}  h6 {[%clk 0:02:34]} 12. Nxd6+ {[%clk 0:02:42]}  cxd6 {[%clk 0:02:33]} 13. Bf4 {[%clk 0:02:43]}  Qd5 {[%clk 0:02:32]} 14. c3 {[%clk 0:02:38]}  g5 {[%clk 0:02:07]} 15. Bg3 {[%clk 0:02:37]}  gxh4 {[%clk 0:02:05]} 16. Bxh4 {[%clk 0:02:35]}  Rg8 {[%clk 0:02:03]} 17. Bg3 {[%clk 0:02:29]}  Rg4 {[%clk 0:01:58]} 18. Nxd4 {[%clk 0:02:20]}  Rxd4 {[%clk 0:01:35]} 19. cxd4 {[%clk 0:02:17]}  Kd7 {[%clk 0:01:35]} 20. Qa4 {[%clk 0:02:01]}  Rg8 {[%clk 0:01:33]} 21. Rad1 {[%clk 0:01:47]}  h5 {[%clk 0:01:32]} 22. Re5 {[%clk 0:01:46]}  Qc4 {[%clk 0:01:16]} 23. Qxc4 {[%clk 0:01:36]}  Bxc4 {[%clk 0:01:17]} 24. Rf5 {[%clk 0:01:36]}  Ne7 {[%clk 0:01:11]} 25. Rf6 {[%clk 0:01:36]}  Rg6 {[%clk 0:01:03]} 26. Rxg6 {[%clk 0:01:24]}  fxg6 {[%clk 0:01:04]} 27. b3 {[%clk 0:01:25]}  Bd5 {[%clk 0:01:02]} 28. f3 {[%clk 0:01:06]}  a6 {[%clk 0:01:00]} 29. Be1 {[%clk 0:00:57]}  Nf5 {[%clk 0:00:58]} 30. Bd2 {[%clk 0:00:55]}  Ke6 {[%clk 0:00:55]} 31. Bf4 {[%clk 0:00:55]}  Kd7 {[%clk 0:00:54]} 32. Kf2 {[%clk 0:00:54]}  Ke6 {[%clk 0:00:52]} 33. Rd2 {[%clk 0:00:52]}  Kd7 {[%clk 0:00:49]} 34. Rd1 {[%clk 0:00:52]}  Ke6 {[%clk 0:00:49]} 35. Rd2 {[%clk 0:00:53]}  Kd7 {[%clk 0:00:49]} 36. Rd1 {[%clk 0:00:50]} 1/2-1/2


[Site "https://www.chess.com"]

[Event "Titled Tuesday Blitz June 8 2021"]
[White "Bayo Milagro, Alvaro"]
[Black "Popilski, Gil"]
[WhiteFideId "22275240"]
[BlackFideId "2809060"]
[WhiteElo "2270"]
[BlackElo "2537"]
[Result "0-1"]
[Round "08"]
[TimeControl "180+1"]
[Date "2021.06.08"]
[WhiteClock "0:00:02"]
[BlackClock "0:00:17"]

1. d3 {[%clk 0:03:00]}  d5 {[%clk 0:02:56]} 2. e4 {[%clk 0:02:58]}  dxe4 {[%clk 0:02:55]} 3. dxe4 {[%clk 0:02:59]}  Qxd1+ {[%clk 0:02:55]} 4. Kxd1 {[%clk 0:02:59]}  Nf6 {[%clk 0:02:54]} 5. f3 {[%clk 0:02:58]}  Nc6 {[%clk 0:02:54]} 6. c3 {[%clk 0:02:58]}  b6 {[%clk 0:02:53]} 7. Kc2 {[%clk 0:02:56]}  Bb7 {[%clk 0:02:47]} 8. Nh3 {[%clk 0:02:54]}  Nd7 {[%clk 0:02:40]} 9. Bf4 {[%clk 0:02:47]}  e5 {[%clk 0:02:38]} 10. Be3 {[%clk 0:02:44]}  Bc5 {[%clk 0:02:37]} 11. Bf2 {[%clk 0:02:37]}  a5 {[%clk 0:02:34]} 12. Nd2 {[%clk 0:02:36]}  O-O {[%clk 0:02:18]} 13. a4 {[%clk 0:02:35]}  Rad8 {[%clk 0:02:14]} 14. Bb5 {[%clk 0:02:31]}  Bxf2 {[%clk 0:01:58]} 15. Nxf2 {[%clk 0:02:28]}  Nc5 {[%clk 0:01:59]} 16. Nc4 {[%clk 0:02:21]}  f6 {[%clk 0:01:52]} 17. Rhd1 {[%clk 0:02:18]}  Ne7 {[%clk 0:01:51]} 18. Ne3 {[%clk 0:02:14]}  Ba6 {[%clk 0:01:44]} 19. Bxa6 {[%clk 0:01:30]}  Nxa6 {[%clk 0:01:45]} 20. Nd3 {[%clk 0:01:05]}  Kf7 {[%clk 0:01:43]} 21. b4 {[%clk 0:01:03]}  axb4 {[%clk 0:01:41]} 22. cxb4 {[%clk 0:01:03]}  Nc6 {[%clk 0:01:41]} 23. Nd5 {[%clk 0:00:54]}  Nd4+ {[%clk 0:01:35]} 24. Kb2 {[%clk 0:00:49]}  Rd7 {[%clk 0:01:31]} 25. Rdc1 {[%clk 0:00:46]}  Ne6 {[%clk 0:01:04]} 26. a5 {[%clk 0:00:34]}  bxa5 {[%clk 0:00:58]} 27. Rxa5 {[%clk 0:00:29]}  Nb8 {[%clk 0:00:56]} 28. Ra7 {[%clk 0:00:26]}  Rfd8 {[%clk 0:00:35]} 29. Nc5 {[%clk 0:00:22]}  Nxc5 {[%clk 0:00:28]} 30. Rxc5 {[%clk 0:00:23]}  c6 {[%clk 0:00:26]} 31. Rxd7+ {[%clk 0:00:21]}  Rxd7 {[%clk 0:00:27]} 32. Ne3 {[%clk 0:00:20]}  Na6 {[%clk 0:00:24]} 33. Rxc6 {[%clk 0:00:13]}  Nxb4 {[%clk 0:00:23]} 34. Rc4 {[%clk 0:00:12]}  Nd3+ {[%clk 0:00:21]} 35. Kc3 {[%clk 0:00:10]}  Nf4 {[%clk 0:00:21]} 36. g3 {[%clk 0:00:09]}  Rd3+ {[%clk 0:00:20]} 37. Kb4 {[%clk 0:00:09]}  Rxe3 {[%clk 0:00:20]} 38. gxf4 {[%clk 0:00:10]}  exf4 {[%clk 0:00:20]} 39. Kc5 {[%clk 0:00:05]}  Rxf3 {[%clk 0:00:19]} 40. Kd4 {[%clk 0:00:05]}  Kg6 {[%clk 0:00:18]} 41. Rc7 {[%clk 0:00:04]}  Rh3 {[%clk 0:00:17]} 42. Rc2 {[%clk 0:00:02]}  Kh6 {[%clk 0:00:17]} 43. Kd5 {[%clk 0:00:01]}  g5 {[%clk 0:00:17]} 44. Ke6 {[%clk 0:00:02]}  Kg6 {[%clk 0:00:17]} 45. Rc8 {[%clk 0:00:02]}  Rxh2 {[%clk 0:00:16]} 46. Rg8+ {[%clk 0:00:02]}  Kh5 {[%clk 0:00:17]} 47. Kxf6 {[%clk 0:00:02]}  h6 {[%clk 0:00:17]} 48. e5 {[%clk 0:00:02]}  Re2 {[%clk 0:00:17]} 49. e6 {[%clk 0:00:02]}  f3 {[%clk 0:00:17]} 50. Ra8 {[%clk 0:00:02]}  f2 {[%clk 0:00:17]} 0-1


[Site "https://www.chess.com"]

[Event "Titled Tuesday Blitz June 8 2021"]
[White "Bologan, Victor"]
[Black "Pichot, Alan"]
[WhiteFideId "13900048"]
[BlackFideId "110973"]
[WhiteElo "2511"]
[BlackElo "2622"]
[Result "1-0"]
[Round "08"]
[TimeControl "180+1"]
[Date "2021.06.08"]
[WhiteClock "0:00:26"]
[BlackClock "0:00:05"]

1. e4 {[%clk 0:03:00]}  c5 {[%clk 0:02:38]} 2. Nf3 {[%clk 0:02:59]}  e6 {[%clk 0:02:36]} 3. d4 {[%clk 0:02:58]}  cxd4 {[%clk 0:02:37]} 4. Nxd4 {[%clk 0:02:58]}  Nc6 {[%clk 0:02:37]} 5. Nc3 {[%clk 0:02:57]}  Qc7 {[%clk 0:02:37]} 6. Be2 {[%clk 0:02:57]}  a6 {[%clk 0:02:37]} 7. O-O {[%clk 0:02:57]}  Nf6 {[%clk 0:02:38]} 8. Kh1 {[%clk 0:02:55]}  Be7 {[%clk 0:02:37]} 9. f4 {[%clk 0:02:51]}  d6 {[%clk 0:02:37]} 10. Be3 {[%clk 0:02:51]}  O-O {[%clk 0:02:38]} 11. Qe1 {[%clk 0:02:51]}  Nxd4 {[%clk 0:02:37]} 12. Bxd4 {[%clk 0:02:51]}  b5 {[%clk 0:02:38]} 13. a3 {[%clk 0:02:50]}  Bb7 {[%clk 0:02:38]} 14. Qg3 {[%clk 0:02:50]}  Bc6 {[%clk 0:02:38]} 15. Rae1 {[%clk 0:02:50]}  Qb7 {[%clk 0:02:38]} 16. Bf3 {[%clk 0:02:48]}  a5 {[%clk 0:02:37]} 17. Re3 {[%clk 0:02:39]}  b4 {[%clk 0:02:33]} 18. axb4 {[%clk 0:02:39]}  axb4 {[%clk 0:02:23]} 19. Ne2 {[%clk 0:02:22]}  d5 {[%clk 0:02:16]} 20. e5 {[%clk 0:02:12]}  Ne4 {[%clk 0:02:13]} 21. Bxe4 {[%clk 0:02:11]}  dxe4 {[%clk 0:02:14]} 22. f5 {[%clk 0:02:09]}  exf5 {[%clk 0:02:11]} 23. Nf4 {[%clk 0:02:04]}  Rad8 {[%clk 0:01:53]} 24. c3 {[%clk 0:01:50]}  bxc3 {[%clk 0:01:54]} 25. Bxc3 {[%clk 0:01:47]}  Bb5 {[%clk 0:01:35]} 26. Rfe1 {[%clk 0:01:31]}  Qc6 {[%clk 0:01:33]} 27. Qh3 {[%clk 0:01:11]}  Bc5 {[%clk 0:00:31]} 28. Rg3 {[%clk 0:01:02]}  Bf2 {[%clk 0:00:31]} 29. e6 {[%clk 0:01:00]}  f6 {[%clk 0:00:20]} 30. Nh5 {[%clk 0:00:29]}  g6 {[%clk 0:00:08]} 31. Qxf5 {[%clk 0:00:28]}  Bxe1 {[%clk 0:00:05]} 32. Rxg6+ {[%clk 0:00:26]}  Kh8 {[%clk 0:00:05]} 33. Bxf6+ {[%clk 0:00:26]} 1-0


[Site "https://www.chess.com"]

[Event "Titled Tuesday Blitz June 8 2021"]
[White "Bryakin, Mikhail"]
[Black "Blit, Jacques"]
[WhiteFideId "4165314"]
[BlackFideId "114839"]
[WhiteElo "2409"]
[BlackElo "2390"]
[Result "0-1"]
[Round "08"]
[TimeControl "180+1"]
[Date "2021.06.08"]
[WhiteClock "0:01:30"]
[BlackClock "0:01:04"]

1. e4 {[%clk 0:01:57]}  c5 {[%clk 0:02:58]} 2. Be2 {[%clk 0:01:56]}  Nc6 {[%clk 0:02:56]} 3. f4 {[%clk 0:01:56]}  d5 {[%clk 0:02:53]} 4. e5 {[%clk 0:01:55]}  Bf5 {[%clk 0:02:42]} 5. Nf3 {[%clk 0:01:55]}  e6 {[%clk 0:02:40]} 6. O-O {[%clk 0:01:49]}  Nge7 {[%clk 0:02:32]} 7. d3 {[%clk 0:01:49]}  Bg4 {[%clk 0:02:12]} 8. c3 {[%clk 0:01:49]}  Nf5 {[%clk 0:02:10]} 9. h3 {[%clk 0:01:50]}  Bxf3 {[%clk 0:02:07]} 10. Bxf3 {[%clk 0:01:51]}  h5 {[%clk 0:02:03]} 11. a4 {[%clk 0:01:50]}  g6 {[%clk 0:01:54]} 12. Na3 {[%clk 0:01:50]}  a6 {[%clk 0:01:46]} 13. Bd2 {[%clk 0:01:50]}  Bh6 {[%clk 0:01:39]} 14. Re1 {[%clk 0:01:50]}  Qh4 {[%clk 0:01:37]} 15. Qc1 {[%clk 0:01:49]}  Rg8 {[%clk 0:01:35]} 16. Nc2 {[%clk 0:01:49]}  g5 {[%clk 0:01:26]} 17. fxg5 {[%clk 0:01:49]}  Bxg5 {[%clk 0:01:26]} 18. Bxg5 {[%clk 0:01:49]}  Rxg5 {[%clk 0:01:27]} 19. Qd2 {[%clk 0:01:50]}  O-O-O {[%clk 0:01:26]} 20. b4 {[%clk 0:01:50]}  Rdg8 {[%clk 0:01:24]} 21. b5 {[%clk 0:01:44]}  Qxh3 {[%clk 0:01:23]} 22. Rf1 {[%clk 0:01:38]}  Nh4 {[%clk 0:01:16]} 23. Ne1 {[%clk 0:01:33]}  Nxe5 {[%clk 0:01:14]} 24. Ra2 {[%clk 0:01:29]}  Nhxf3+ {[%clk 0:01:10]} 25. Nxf3 {[%clk 0:01:29]}  Nxf3+ {[%clk 0:01:08]} 26. Rxf3 {[%clk 0:01:29]}  Qxf3 {[%clk 0:01:08]} 27. bxa6 {[%clk 0:01:29]}  bxa6 {[%clk 0:01:08]} 28. Rb2 {[%clk 0:01:30]}  Rxg2+ {[%clk 0:01:04]} 0-1


[Site "https://www.chess.com"]

[Event "Titled Tuesday Blitz June 8 2021"]
[White "Can, Emre"]
[Black "Shevtchenko, Olesya"]
[WhiteFideId "6302181"]
[BlackFideId "24131890"]
[WhiteElo "2503"]
[BlackElo "2003"]
[Result "1-0"]
[Round "08"]
[TimeControl "180+1"]
[Date "2021.06.08"]
[WhiteClock "0:00:48"]
[BlackClock "0:00:04"]

1. e4 {[%clk 0:03:00]}  e6 {[%clk 0:02:58]} 2. d4 {[%clk 0:03:00]}  d5 {[%clk 0:02:59]} 3. Nd2 {[%clk 0:03:00]}  c5 {[%clk 0:02:57]} 4. Ngf3 {[%clk 0:03:00]}  cxd4 {[%clk 0:02:56]} 5. exd5 {[%clk 0:02:50]}  Qxd5 {[%clk 0:02:54]} 6. Bc4 {[%clk 0:02:49]}  Qd7 {[%clk 0:02:54]} 7. Nb3 {[%clk 0:02:46]}  Nc6 {[%clk 0:02:51]} 8. Nbxd4 {[%clk 0:02:45]}  Nxd4 {[%clk 0:02:47]} 9. Qxd4 {[%clk 0:02:45]}  Qxd4 {[%clk 0:02:47]} 10. Nxd4 {[%clk 0:02:46]}  a6 {[%clk 0:02:47]} 11. O-O {[%clk 0:02:39]}  b5 {[%clk 0:02:46]} 12. Be2 {[%clk 0:02:38]}  Bb7 {[%clk 0:02:46]} 13. a4 {[%clk 0:02:32]}  b4 {[%clk 0:02:43]} 14. a5 {[%clk 0:02:32]}  Nf6 {[%clk 0:02:38]} 15. Rd1 {[%clk 0:02:28]}  Be7 {[%clk 0:02:32]} 16. Bd2 {[%clk 0:02:19]}  O-O {[%clk 0:02:23]} 17. Be1 {[%clk 0:02:16]}  Rfd8 {[%clk 0:02:19]} 18. Nb3 {[%clk 0:02:08]}  Rac8 {[%clk 0:02:11]} 19. Rxd8+ {[%clk 0:02:07]}  Rxd8 {[%clk 0:02:08]} 20. Rd1 {[%clk 0:02:02]}  Rxd1 {[%clk 0:02:01]} 21. Bxd1 {[%clk 0:02:02]}  Nd7 {[%clk 0:01:46]} 22. Be2 {[%clk 0:01:58]}  Kf8 {[%clk 0:01:41]} 23. f3 {[%clk 0:01:58]}  Nc5 {[%clk 0:01:40]} 24. Nc1 {[%clk 0:01:51]}  Na4 {[%clk 0:01:38]} 25. Nd3 {[%clk 0:01:44]}  Ke8 {[%clk 0:01:05]} 26. Nxb4 {[%clk 0:01:37]}  Nxb2 {[%clk 0:00:51]} 27. Nxa6 {[%clk 0:01:34]}  Kd8 {[%clk 0:00:42]} 28. Nb4 {[%clk 0:01:27]}  Bc5+ {[%clk 0:00:32]} 29. Kf1 {[%clk 0:01:23]}  Bd5 {[%clk 0:00:30]} 30. Nxd5 {[%clk 0:01:19]}  exd5 {[%clk 0:00:29]} 31. Bc3 {[%clk 0:01:15]}  Nc4 {[%clk 0:00:26]} 32. Bxc4 {[%clk 0:01:13]}  dxc4 {[%clk 0:00:27]} 33. Bxg7 {[%clk 0:01:13]}  Bb4 {[%clk 0:00:26]} 34. a6 {[%clk 0:01:13]}  Bc5 {[%clk 0:00:26]} 35. Ke2 {[%clk 0:01:11]}  Kc7 {[%clk 0:00:25]} 36. Bh6 {[%clk 0:01:11]}  Bd6 {[%clk 0:00:20]} 37. Be3 {[%clk 0:01:06]}  Bxh2 {[%clk 0:00:20]} 38. f4 {[%clk 0:01:05]}  Bg3 {[%clk 0:00:16]} 39. Kf3 {[%clk 0:01:05]}  Be1 {[%clk 0:00:16]} 40. Ke4 {[%clk 0:01:05]}  Bc3 {[%clk 0:00:16]} 41. g4 {[%clk 0:01:04]}  Bg7 {[%clk 0:00:14]} 42. Kd5 {[%clk 0:01:02]}  c3 {[%clk 0:00:14]} 43. a7 {[%clk 0:00:56]}  Kb7 {[%clk 0:00:13]} 44. Kd6 {[%clk 0:00:57]}  Bf6 {[%clk 0:00:09]} 45. Kd7 {[%clk 0:00:54]}  Ka8 {[%clk 0:00:05]} 46. Ke8 {[%clk 0:00:53]}  Bh8 {[%clk 0:00:04]} 47. Kxf7 {[%clk 0:00:53]}  Kb7 {[%clk 0:00:04]} 48. g5 {[%clk 0:00:52]}  Bf6 {[%clk 0:00:04]} 49. Kxf6 {[%clk 0:00:52]}  h6 {[%clk 0:00:05]} 50. gxh6 {[%clk 0:00:52]}  Ka8 {[%clk 0:00:05]} 51. h7 {[%clk 0:00:52]}  Kb7 {[%clk 0:00:06]} 52. a8=Q+ {[%clk 0:00:52]}  Kc7 {[%clk 0:00:04]} 53. Qa7+ {[%clk 0:00:51]}  Kd6 {[%clk 0:00:05]} 54. Qb6+ {[%clk 0:00:51]}  Kd5 {[%clk 0:00:05]} 55. Qc5+ {[%clk 0:00:51]}  Ke4 {[%clk 0:00:05]} 56. h8=Q {[%clk 0:00:51]}  Kf3 {[%clk 0:00:06]} 57. Qh1+ {[%clk 0:00:50]}  Ke2 {[%clk 0:00:06]} 58. Qg2+ {[%clk 0:00:49]}  Kd1 {[%clk 0:00:05]} 59. Qd4+ {[%clk 0:00:48]}  Ke1 {[%clk 0:00:04]} 1-0


[Site "https://www.chess.com"]